[Event "55th Biel Festival MTO 2022"]
[Site "Biel"]
[Date "2022.07.20"]
[Round "7.27"]
[White "Peyrer, Konstantin"]
[Black "Lou Vincent"]
[Result "1-0"]
[ECO "B92"]
[WhiteElo "2406"]
[BlackElo "2200"]
[Annotator "TA"]
[PlyCount "87"]
[EventDate "2022.07.13"]
[EventType "swiss"]
[EventCountry "SUI"]
[SourceTitle "playchess.com"]
[Source "ChessBase"]
[SourceQuality "1"]
[TimeControl "40/5400+30:1800+30"]

{[%evp 14,87,14,-1,59,60,26,51,53,50,68,75,89,63,114,112,121,121,179,179,179,181,166,165,161,115,141,118,107,97,102,101,108,91,560,560,610,433,554,562,575,556,587,542,537,543,493,431,1019,1019,1068,1003,763,468,500,493,470,462,810,801,766,756,1087,790,1470,1487,1468,1460,29991,29992,29997,29998,29998,29992,29998,29999]} 1. e4 {[%emt 0:00:07]} c5 {[%emt 0:00:04]} 2. Nf3 {[%emt 0:00:06]} d6 {[%emt 0:00:07]} 3. d4 {[%emt 0:00:03]} cxd4 {[%emt 0:00:04]} 4. Nxd4 {[%emt 0:00:05]} Nf6 {[%emt 0:00:04]} 5. Nc3 {[%emt 0:00:05]} a6 {[%emt 0:00:10]} 6. Be2 {[%emt 0:00:03]} e5 {[%emt 0:00:56]} 7. Nb3 {[%emt 0:00:04]} Be7 {[%emt 0:00:28]} 8. g4 {[%emt 0:00:49][%cal Bg2g4,Bg4g5][%mdl 32]} Be6 {[%emt 0:04:16] B92: Sicilian Najdorf: 6 Be2.} (8... h6 $11) 9. g5 $14 {[%emt 0:02:36]} Nfd7 {[%emt 0:00:19]} 10. h4 {[%emt 0:01:00]} Nc6 {[%emt 0:17:17] White is slightly better.} 11. Be3 {[%emt 0:00:23]} Nc5 {[%emt 0:09:18] [#]} 12. Nd5 $146 {[%emt 0:01:52]} ({Predecessor:} 12. Rg1 Rc8 13. h5 Nxb3 14. axb3 g6 15. Qd2 Nb4 16. f4 d5 17. exd5 exf4 18. dxe6 fxe3 {1-0 (41) Zenuni,B-Zenuni,A (1960) Pristina 2017}) 12... Rc8 {[%emt 0:02:54]} 13. f3 {[%emt 0:09:59]} Na4 {[%emt 0:11:27] [#]} ({Black should try} 13... O-O $14) 14. Qd2 $1 $16 {[%emt 0:07:01]} Nc5 {[%emt 0:20:13]} 15. c3 {[%emt 0:01:22]} Bxd5 {[%emt 0:05:24]} (15... h5 $16 16. O-O-O Bxd5 17. Qxd5 g6 18. Nxc5 dxc5) 16. exd5 $18 {[%emt 0:02:47]} Nxb3 {[%emt 0:00:08]} 17. axb3 {[%emt 0:00:03]} Nb8 {[%emt 0:00:18]} 18. Bd3 {[%emt 0:04:05]} Nd7 {[%emt 0:00:22]} 19. h5 {[%emt 0:02:05]} ({Better is} 19. Bc2 $18) 19... h6 $16 {[%emt 0:14:10][%cal Re7g5]} 20. gxh6 {[%emt 0:05:07]} gxh6 {[%emt 0:00:17]} 21. Bxh6 {[%emt 0:04:14]} Bh4+ {[%emt 0:00:24]} 22. Ke2 {[%emt 0:00:04] [#] And now Rag1 would win.} Qf6 {[%emt 0:00:09]} 23. Be3 {[%emt 0:00:06] Threatens to win with h6. A strong pair of Bishops.} Rg8 $2 {[%emt 0:00:40][%mdl 8192] Black cannot hold the game after this.} (23... Rxh5 $16 {is a better chance.} 24. Rag1 Qh8) 24. Rag1 $18 {[%emt 0:00:22] Active counter play!} Ke7 {[%emt 0:05:18]} 25. Rg4 {[%emt 0:00:50]} Rxg4 {[%emt 0:02:35]} 26. fxg4 {[%emt 0:00:04]} Rg8 {[%emt 0:00:05] Prevents g5.} 27. Bf5 {[%emt 0:00:08]} Bg5 {[%emt 0:01:19]} 28. h6 {[%emt 0:01:39]} Bf4 {[%emt 0:01:36]} 29. h7 {[%emt 0:02:33]} Rh8 {[%emt 0:00:06]} 30. Kd1 {[%emt 0:01:28]} Nf8 {[%emt 0:03:10]} (30... Bxe3 $142 31. Qxe3 Nf8) 31. Bxf4 {[%emt 0:00:47]} exf4 {[%emt 0:00:06]} 32. Qxf4 {[%emt 0:00:08] aiming for g5.} Ng6 {[%emt 0:00:08]} 33. Qb4 {[%emt 0:00:20]} b5 {[%emt 0:01:39]} 34. Kc2 {[%emt 0:02:32]} Kf8 {[%emt 0:00:55]} 35. c4 {[%emt 0:03:19]} bxc4 {[%emt 0:00:58]} (35... Kg7 $142 36. c5 a5 37. Qxb5 Ne7) 36. bxc4 {[%emt 0:00:08][%cal Bb3c4,Bc4c5][%mdl 32]} Kg7 {[%emt 0:00:25]} 37. Qc3 {[%emt 0:00:32]} Ne5 {[%emt 0:00:17]} 38. Re1 {[%emt 0:02:49]} Qh4 {[%emt 0:00:50]} 39. c5 {[%emt 0:01:08]} Qf2+ {[%emt 0:00:14]} 40. Kb1 {[%emt 0:00:07] Rxe5 would kill now.} Rb8 {[%emt 0:00:37]} 41. Rxe5 {[%emt 0:30:24] White mates.} dxe5 {[%emt 0:04:58]} 42. Qxe5+ {[%emt 0:00:00]} f6 {[%emt 0:00:09]} 43. h8=B+ {[%emt 0:00:00]} Rxh8 {[%emt 0:00:56]} 44. Qe7+ {[%emt 0:00:00] Weighted Error Value: White=0.26 (precise) /Black=0.64} 1-0

[Event "55th Biel Festival MTO 2022"]
[Site "Biel"]
[Date "2022.07.20"]
[Round "7.28"]
[White "Aziz, Husain"]
[Black "Mahitosh Dey"]
[Result "0-1"]
[ECO "D31"]
[WhiteElo "2380"]
[BlackElo "2212"]
[Annotator "TA"]
[PlyCount "57"]
[EventDate "2022.07.13"]
[EventType "swiss"]
[EventCountry "SUI"]
[SourceTitle "playchess.com"]
[Source "ChessBase"]
[SourceQuality "1"]
[TimeControl "40/5400+30:1800+30"]

{[%evp 9,57,15,5,12,23,0,0,0,25,0,14,-14,0,-5,52,25,86,56,110,88,85,67,150,87,97,-35,-29,-14,-25,-31,124,122,431,443,425,440,646,671,29984,29985,29985,29986,29983,29984,29996,29997,29997,29995,29996,29997]} 1. d4 {[%emt 0:00:03]} d5 {[%emt 0:00:10]} 2. c4 {[%emt 0:00:12]} e6 {[%emt 0:00:04]} 3. Nc3 {[%emt 0:00:11]} a6 {[%emt 0:00:04]} 4. c5 {[%emt 0:00:37]} e5 {[%emt 0:00:06]} 5. dxe5 {[%emt 0:00:41]} d4 {[%emt 0:00:04]} 6. Na4 {[%emt 0:00:21] D31: Queen's Gambit Declined: Semi-Slav without ...Nf6 (+ Marshall Gambit and Noteboom) and Exchange Variation lines without ...Nf6.} Nc6 {[%emt 0:02:57]} 7. Nf3 {[%emt 0:00:20]} Bf5 {[%emt 0:00:11] [#] Threatens to win with ...Nb4.} 8. a3 $146 {[%emt 0:00:44] Against Nb4. The position is equal.} ({Predecessor:} 8. e3 dxe3 9. Bxe3 Qxd1+ 10. Kxd1 O-O-O+ 11. Kc1 Nh6 12. h3 Be4 13. Be2 Nf5 14. Bf4 Bxf3 15. Bxf3 Rd4 16. Bd2 Rxa4 17. Bc3 Bxc5 18. g3 Bd4 19. Bd2 Nxe5 {0-1 (19) Fier,A (2564)-Warmerdam,M (2562) Chess.com INT 2021}) 8... Qd5 {[%emt 0:02:42]} 9. g3 {[%emt 0:01:47]} Be4 {[%emt 0:09:53]} 10. Bg2 {[%emt 0:01:19]} Nge7 {[%emt 0:00:03][%mdl 1024] Black has compensation.} 11. O-O {[%emt 0:05:33]} O-O-O {[%emt 0:04:36]} (11... h6 $11) 12. b4 {[%emt 0:01:55]} Ng6 {[%emt 0:00:07]} (12... Nxe5 $11 13. Nb2 N5c6) 13. Nb2 {[%emt 0:00:49]} Be7 {[%emt 0:01:52]} (13... Ngxe5 $14 14. Bh3+ Kb8) 14. Nd3 $16 {[%emt 0:01:30]} Ncxe5 {[%emt 0:01:07]} 15. a4 {[%emt 0:06:36]} Bf6 {[%emt 0:00:05] [#]} ({Black should try} 15... Nd7 $14) 16. b5 {[%emt 0:15:28]} ({Better is} 16. Bh3+ $1 Kb8 17. Nfxe5 Nxe5 18. f3 Bxd3 19. exd3) 16... a5 {[%emt 0:00:08]} 17. Bd2 {[%emt 0:00:30]} (17. h4 $16) 17... Nxf3+ $15 {[%emt 0:01:28]} (17... Nxd3 $2 18. exd3 Bxd3 {[#]} 19. Nh4 $1 Qxc5 20. Qg4+ (20. Qf3 Bxf1 21. Qxb7+ Kd7 $11) 20... Kb8 21. Qf3 $18) 18. Bxf3 {[%emt 0:00:38]} Bxf3 {[%emt 0:00:10]} 19. exf3 {[%emt 0:00:07]} b6 {[%emt 0:00:11]} (19... Ne5 $15 {stays ahead.} 20. Nxe5 Bxe5) 20. Rc1 $16 {[%emt 0:03:23] Black must now prevent cxb6.} (20. cxb6 $6 cxb6 21. Re1 Kb7 $11) 20... Kb8 $2 {[%emt 0:00:22][%mdl 8192] This costs Black the game.} (20... Kb7 $16 {is more resistant.}) 21. cxb6 $18 {[%emt 0:18:44]} cxb6 {[%emt 0:00:05]} 22. Rc6 {[%emt 0:00:07]} (22. Qc2 Rc8 23. Qd1 Rxc1 24. Bxc1 Rc8 $11) 22... Ka7 {[%emt 0:01:57] [#]} (22... Ne5 $142 23. Nxe5 Bxe5 24. Rxb6+ Ka8 25. Ra6+ Kb7) 23. Bxa5 $1 {[%emt 0:01:21][%mdl 512]} bxa5 {[%emt 0:00:06]} (23... Rb8 24. Qd2) 24. Qd2 {[%emt 0:00:31] White mates.} Rd7 {[%emt 0:01:40]} 25. Qxa5+ {[%emt 0:01:47]} Kb8 {[%emt 0:00:03]} 26. Nb4 {[%emt 0:07:31]} ({Inferior is} 26. Qb6+ Rb7 27. Qa5 (27. Nb4 Rxb6 28. Rxb6+ Qb7 $17) 27... Ra7 28. Qb6+ Rb7 $11) 26... Qxf3 {[%emt 0:03:45]} 27. Na6+ {[%emt 0:00:56]} Ka7 {[%emt 0:00:55]} 28. Qb6+ {[%emt 0:01:12]} Ka8 {[%emt 0:00:10]} 29. Rc7 {[%emt 0:01:57][%mdl 32768] Weighted Error Value: White=0.18 (very precise) /Black=0.62. Loss on time!?} 0-1

[Event "55th Biel Festival MTO 2022"]
[Site "Biel"]
[Date "2022.07.20"]
[Round "7.29"]
[White "Kamber Bruno"]
[Black "Papadiamandis, Elliot"]
[Result "1/2-1/2"]
[ECO "B51"]
[WhiteElo "2225"]
[BlackElo "2369"]
[Annotator "TA"]
[PlyCount "54"]
[EventDate "2022.07.13"]
[EventType "swiss"]
[EventCountry "SUI"]
[SourceTitle "playchess.com"]
[Source "ChessBase"]
[SourceQuality "1"]
[TimeControl "40/5400+30:1800+30"]

{[%evp 9,54,18,18,15,22,18,24,16,37,22,19,0,28,33,43,44,35,37,52,29,32,26,47,27,33,38,30,37,32,25,46,30,30,18,39,50,56,46,104,59,68,27,115,29,32,17,26]} 1. e4 {[%emt 0:00:04]} c5 {[%emt 0:01:35]} 2. Nf3 {[%emt 0:00:43]} d6 {[%emt 0:00:21]} 3. Bb5+ {[%emt 0:00:54]} Nd7 {[%emt 0:00:15]} 4. a4 {[%emt 0:00:52]} Ngf6 {[%emt 0:01:15]} 5. Nc3 {[%emt 0:00:14]} a6 {[%emt 0:08:19]} 6. Be2 {[%emt 0:00:26] B51: Sicilian: Moscow Variation (3 Bb5+) without 3...Bd7.} b6 {[%emt 0:03:08]} 7. d4 {[%emt 0:01:36]} cxd4 {[%emt 0:00:27]} 8. Qxd4 {[%emt 0:00:21] White has an edge.} Bb7 {[%emt 0:05:36]} 9. O-O {[%emt 0:01:30]} e6 {[%emt 0:05:36]} 10. Nd2 {[%emt 0:01:59]} Qc7 {[%emt 0:14:47]} 11. Nc4 {[%emt 0:00:37] [#]} d5 $146 {[%emt 0:01:41]} ({Predecessor:} 11... e5 12. Qe3 Be7 13. Rd1 O-O 14. b3 Rab8 15. Ba3 Nc5 16. Bf3 Rfd8 17. Rd2 Ba8 18. Bb4 Ne6 19. Rad1 Nd4 {½-½ (19) Plenca,J (2483)-Palac,M (2529) Vinkovci 2020}) 12. exd5 {[%emt 0:00:18]} Bc5 {[%emt 0:01:06][%cal Bf8c5,Bc5d4,Bd4f6][%mdl 32]} 13. Qh4 {[%emt 0:24:50]} Nxd5 {[%emt 0:05:17]} 14. Nxd5 {[%emt 0:00:38]} Bxd5 {[%emt 0:01:42]} 15. Bf4 {[%emt 0:01:44]} Qc6 {[%emt 0:03:13]} 16. Qg3 {[%emt 0:13:58]} O-O {[%emt 0:08:07]} 17. Bh6 {[%emt 0:06:33][%csl Gh6][%cal Rg3g7] [#]} Bd4 {[%emt 0:00:35]} 18. c3 {[%emt 0:00:04]} Bf6 {[%emt 0:11:58]} 19. Ne3 {[%emt 0:00:30] Hoping for Ng4.} Kh8 {[%emt 0:05:16]} 20. Nxd5 $40 {[%emt 0:02:20][%mdl 128] White mounts an attack.} exd5 {[%emt 0:00:20]} 21. Bg5 {[%emt 0:01:35]} Nc5 {[%emt 0:04:13] aiming for ...Ne4.} 22. Bxf6 {[%emt 0:00:47]} Qxf6 {[%emt 0:00:01]} 23. Qf3 {[%emt 0:01:25]} Qe5 {[%emt 0:01:08]} (23... Rae8 $14) 24. Rfd1 {[%emt 0:00:35]} Rad8 {[%emt 0:00:59]} 25. Bf1 {[%emt 0:10:05]} d4 {[%emt 0:05:42] [#]} (25... a5 $11) 26. b4 {[%emt 0:03:16]} (26. cxd4 $1 $16 Rxd4 27. Qc3) 26... Ne6 $11 {[%emt 0:00:25]} 27. cxd4 {[%emt 0:00:31]} Rxd4 {[%emt 0:04:19] Weighted Error Value: White=0.14 (very precise) /Black=0.17 (very precise)} 1/2-1/2

[Event "55th Biel Festival MTO 2022"]
[Site "Biel"]
[Date "2022.07.20"]
[Round "7.30"]
[White "Aydin Gulenay"]
[Black "Herrera Reyes, Jose Antonio"]
[Result "0-1"]
[ECO "B23"]
[WhiteElo "2100"]
[BlackElo "2345"]
[Annotator "TA"]
[PlyCount "78"]
[EventDate "2022.07.13"]
[EventType "swiss"]
[EventCountry "SUI"]
[SourceTitle "playchess.com"]
[Source "ChessBase"]
[SourceQuality "1"]
[TimeControl "40/5400+30:1800+30"]

{[%evp 9,78,41,40,43,40,52,42,33,54,22,16,27,8,28,13,-33,86,71,51,30,89,91,91,63,58,0,8,22,97,21,23,-13,-13,-13,-6,-6,-6,-10,-11,-4,-1,-75,-75,-78,-78,-85,-78,-185,-185,-525,-423,-404,-404,-404,-404,-616,-507,-1901,-1917,-1164,-1109,-2114,-1922,-2656,-2653,-2711,-2604,-2543,-2524,-6729,-6913]} 1. e4 {[%emt 0:00:04]} c5 {[%emt 0:00:08]} 2. Nc3 {[%emt 0:00:05]} e6 {[%emt 0:02:06]} 3. g3 {[%emt 0:00:09]} b6 {[%emt 0:00:28]} 4. Bg2 {[%emt 0:00:09]} Bb7 {[%emt 0:00:04]} 5. Nge2 {[%emt 0:00:18]} a6 {[%emt 0:03:34]} 6. d4 {[%emt 0:00:27] B23: Closed Sicilian: Lines without g3.} cxd4 {[%emt 0:00:06]} 7. Nxd4 {[%emt 0:00:06]} Qc7 {[%emt 0:00:04] 7...Nf6 is more advanced technology.} 8. O-O {[%emt 0:00:28][%cal Oc3d5] White is slightly better.} d6 {[%emt 0:03:05]} 9. Re1 {[%emt 0:00:39][%cal Oc3d5] Strongly threatening Nd5!} Be7 {[%emt 0:00:06] [#]} 10. Nd5 $1 {[%emt 0:01:28]} exd5 {[%emt 0:00:02]} 11. exd5 {[%emt 0:00:10] [#] Black must now prevent Nf5.} Bc8 $146 {[%emt 0:00:04] Inhibits Nf5.} ({Predecessor:} 11... Kf8 12. Bf4 Nd7 13. Nf5 Re8 14. Rxe7 Rxe7 15. Bxd6 Qd8 16. Qd4 f6 17. Re1 Ne5 18. Rxe5 fxe5 19. Qxe5 Ke8 20. Bxe7 Nxe7 21. Nd6+ Kf8 22. Qe6 {1-0 (22) Burmakin,E (2268)-Sukhotin,I (2188) Krasnoyarsk 2013}) 12. a4 {[%emt 0:35:34]} (12. Bf4 $11 {might be stronger.}) 12... h5 {[%emt 0:15:03]} (12... Nf6 $15 {stays ahead.}) 13. Ra3 $16 {[%emt 0:06:55][%mdl 1024] White has strong compensation.} Kf8 {[%emt 0:04:15]} 14. Bf4 {[%emt 0:07:20]} Ra7 {[%emt 0:22:47]} (14... h4 $11) 15. h4 {[%emt 0:17:03]} Qd8 {[%emt 0:06:16]} 16. Rae3 {[%emt 0:01:53]} Nh6 {[%emt 0:08:56]} 17. Qd3 {[%emt 0:07:56]} ({Wrong is} 17. Qxh5 $2 Bg4 18. Qg5 Bxg5 $19) (17. Bg5 $1 $14 Bf6 18. Re8+ (18. Qxh5 $2 Bg4 $19) (18. Bxf6 gxf6 19. Re8+ Qxe8 $11) 18... Qxe8 19. Rxe8+ Kxe8 20. Qe1+ (20. Bxf6 gxf6 21. Nc6 Nxc6 $11) 20... Kf8 21. Qb4) 17... Ng4 $1 $11 {[%emt 0:05:10]} 18. R3e2 {[%emt 0:00:57]} g6 {[%emt 0:06:24] [#]} (18... Ne5 $1 $11 19. Rxe5 (19. Bxe5 dxe5 20. Rxe5 Bd6 $11) 19... dxe5 20. Bxe5 Bd7) 19. Qc3 {[%emt 0:04:13]} (19. a5 $1 $16) 19... Kg8 $1 {[%emt 0:05:05]} 20. Rxe7 {[%emt 0:13:10]} Rxe7 {[%emt 0:00:06]} 21. Rxe7 {[%emt 0:00:05]} Qxe7 {[%emt 0:00:04]} 22. Qxc8+ {[%emt 0:00:02]} Kh7 {[%emt 0:00:07] ( -> ...Qe1+)} 23. Qc3 {[%emt 0:00:22] Prevents Qe1+.} Re8 {[%emt 0:01:51]} 24. Bf3 {[%emt 0:01:20]} Nd7 $40 {[%emt 0:03:28][%mdl 128] Black has some attack.} 25. Nc6 {[%emt 0:01:05]} (25. b3 $11 {keeps the balance.}) 25... Qe1+ $17 {[%emt 0:00:01]} 26. Qxe1 {[%emt 0:00:01]} Rxe1+ {[%emt 0:00:07]} 27. Kg2 {[%emt 0:00:03]} Nge5 {[%emt 0:00:10]} 28. Nxe5 {[%emt 0:01:22]} (28. Nb4 $17 {might work better.}) 28... Nxe5 $19 {[%emt 0:00:01]} 29. Bxe5 $2 {[%emt 0:00:49]} (29. c3 {is more resistant.}) 29... dxe5 $17 {[%emt 0:00:31][%mdl 4096] Endgame KR-KB} (29... Rxe5 $2 30. Kf1 $19) 30. Kh2 {[%emt 0:00:41]} e4 {[%emt 0:00:00]} 31. Bg2 {[%emt 0:00:18]} f5 {[%emt 0:00:00]} ({Not} 31... Re2 $2 32. Kg1 $19) 32. c4 {[%emt 0:00:40]} (32. c3 $142) 32... a5 $19 {[%emt 0:00:12] Black is clearly winning.} 33. g4 {[%emt 0:00:29]} (33. Bh3 $142) 33... hxg4 {[%emt 0:01:40]} 34. Kg3 {[%emt 0:00:02]} Kg7 {[%emt 0:00:07]} 35. Kf4 {[%emt 0:00:51]} Kf6 {[%emt 0:00:30] aiming for ...Re2.} 36. b3 {[%emt 0:00:21]} Re2 {[%emt 0:00:05]} 37. Kg3 {[%emt 0:00:23]} Ke5 {[%emt 0:00:01] And now ...f4+ would win.} 38. Bf1 {[%emt 0:00:58]} Rb2 {[%emt 0:00:02] ...f4+ is the strong threat.} 39. c5 {[%emt 0:00:22]} Rxb3+ {[%emt 0:00:05] Weighted Error Value: White=0.97/Black=0.14 (very precise)} 0-1

[Event "55th Biel Festival MTO 2022"]
[Site "Biel"]
[Date "2022.07.20"]
[Round "7.31"]
[White "Asllani Dorian"]
[Black "Sahithi Varshini M"]
[Result "0-1"]
[ECO "D32"]
[WhiteElo "2220"]
[BlackElo "2312"]
[Annotator "TA"]
[PlyCount "56"]
[EventDate "2022.07.13"]
[EventType "swiss"]
[EventCountry "SUI"]
[SourceTitle "playchess.com"]
[Source "ChessBase"]
[SourceQuality "1"]
[TimeControl "40/5400+30:1800+30"]

{[%evp 12,56,42,38,39,20,23,0,0,-12,-8,-9,0,-33,-40,-37,-43,-47,-41,-43,6,-25,0,-14,0,-65,-48,-45,-42,-18,-50,-173,-175,-156,-156,-149,-131,-404,-393,-392,-354,-358,-349,-1687,-1638,-1425,-1359]} 1. d4 {[%emt 0:00:04]} d5 {[%emt 0:00:09]} 2. c4 {[%emt 0:00:14]} e6 {[%emt 0:00:07]} 3. Nc3 {[%emt 0:00:26]} c5 {[%emt 0:00:12]} 4. cxd5 {[%emt 0:06:52]} exd5 {[%emt 0:00:06]} 5. Nf3 {[%emt 0:00:47]} Nf6 {[%emt 0:00:36]} 6. Bg5 {[%emt 0:10:40]} Be6 {[%emt 0:00:36]} 7. e3 {[%emt 0:07:05]} c4 {[%emt 0:00:15] D32: Tarrasch Defence: Sidelines and lines without g3.} 8. Bxf6 {[%emt 0:05:07]} Qxf6 {[%emt 0:01:48]} 9. Ne5 {[%emt 0:00:17] [#] Strongly threatening Qa4+. Pair of Knights!} Bb4 $146 {[%emt 0:03:57] The position is equal.} ({Predecessor:} 9... Nc6 10. Qa4 Rc8 11. g3 Bd6 12. f4 Bxe5 13. dxe5 Qd8 14. Bg2 Qb6 15. O-O Qxe3+ {1-0 (57) Narciso Dublan,M (2502)-Laiz Ibanez,H (2318) Linares 2020}) 10. g3 {[%emt 0:23:41]} O-O {[%emt 0:02:40]} 11. Bg2 {[%emt 0:00:44]} Nc6 {[%emt 0:05:24]} 12. Nxc6 {[%emt 0:02:51]} (12. f4 $5 {[%cal Re1g1]}) 12... bxc6 {[%emt 0:00:11]} 13. O-O {[%emt 0:00:20]} Bxc3 {[%emt 0:02:29]} 14. bxc3 {[%emt 0:00:12]} Bf5 {[%emt 0:00:11] Inhibits e4.} 15. Qa4 {[%emt 0:07:37][%cal Oe3e4]} Qe6 {[%emt 0:11:50] Inhibits e4.} (15... Bd3 $15 16. Rfe1 Rab8 17. Qxa7 Rb2) 16. Rfe1 {[%emt 0:02:01][%cal Oe3e4]} (16. e4 $5 dxe4 17. Rfe1 $11) 16... Rfb8 {[%emt 0:03:37]} 17. Qa3 {[%emt 0:04:37]} (17. e4 $5 dxe4 18. Re2 $11) 17... Rb7 {[%emt 0:01:18]} 18. f3 {[%emt 0:04:01]} (18. e4 $11 dxe4 19. Re3) 18... Bd3 {[%emt 0:06:33] Black is more active.} 19. e4 {[%emt 0:00:28]} dxe4 {[%emt 0:06:37]} 20. fxe4 {[%emt 0:00:13]} Rab8 {[%emt 0:01:18] [#] ...Rb2 is the strong threat.} 21. d5 {[%emt 0:03:38]} (21. e5 $15) 21... cxd5 $19 {[%emt 0:13:33]} 22. exd5 {[%emt 0:00:40]} Qb6+ {[%emt 0:00:07]} 23. Kh1 {[%emt 0:00:14]} Qf2 {[%emt 0:00:17] Hoping for ...Rb2.} 24. Qa4 $2 {[%emt 0:04:15][%mdl 8192] This move loses the game for White.} (24. Rg1 $17) 24... g6 {[%emt 0:12:11]} 25. Re8+ {[%emt 0:01:00]} Kg7 {[%emt 0:00:03]} 26. Rxb8 {[%emt 0:00:46]} Rxb8 {[%emt 0:00:04][%cal Bb7b8,Bb8b2,Bb2e2][%mdl 32]} 27. Rg1 $2 {[%emt 0:10:02]} (27. Qd1 Rb2 28. Qg1) 27... Rb2 {[%emt 0:00:34][%cal Of2g2] ( -> ...Qxg2+!)} 28. Qe8 {[%emt 0:00:01]} Re2 {[%emt 0:00:26] Weighted Error Value: White=0.61/Black=0.06 (flawless)} 0-1

[Event "55th Biel Festival MTO 2022"]
[Site "Biel"]
[Date "2022.07.20"]
[Round "7.32"]
[White "Marentini, Marcel"]
[Black "Dishman Stephen"]
[Result "0-1"]
[ECO "A11"]
[WhiteElo "2053"]
[BlackElo "2252"]
[Annotator "TA"]
[PlyCount "66"]
[EventDate "2022.07.13"]
[EventType "swiss"]
[EventCountry "SUI"]
[SourceTitle "playchess.com"]
[Source "ChessBase"]
[SourceQuality "1"]
[TimeControl "40/5400+30:1800+30"]

{[%evp 13,66,6,9,5,8,0,-2,-6,-8,-3,-8,-5,0,-24,-13,-22,0,-13,-13,-20,-6,-35,-35,-64,-78,-133,-126,-184,-177,-179,-179,-263,-181,-264,-260,-313,-324,-373,-372,-372,-370,-412,-384,-566,-498,-586,-567,-801,-795,-703,-645,-808,-756,-737,-721]} 1. Nf3 {[%emt 0:00:04]} d5 {[%emt 0:00:06]} 2. c4 {[%emt 0:00:49]} c6 {[%emt 0:00:14]} 3. g3 {[%emt 0:00:12]} Bg4 {[%emt 0:00:49]} 4. Bg2 {[%emt 0:00:41]} e6 {[%emt 0:00:00]} 5. cxd5 {[%emt 0:00:51]} Bxf3 {[%emt 0:00:00]} 6. Bxf3 {[%emt 0:00:15]} cxd5 {[%emt 0:00:00]} 7. O-O {[%emt 0:03:54]} Nf6 {[%emt 0:00:06]} 8. Qb3 {[%emt 0:01:40] A11: English Opening: 1...c6.} Qd7 {[%emt 0:00:53]} 9. d3 {[%emt 0:03:17]} Nc6 {[%emt 0:00:14]} 10. Bg2 {[%emt 0:00:29] The position is equal.} Be7 {[%emt 0:02:48]} 11. Bd2 {[%emt 0:06:06]} O-O {[%emt 0:00:56] [#]} 12. e3 $146 {[%emt 0:01:30]} ({Predecessor:} 12. Nc3 Nd4 13. Qd1 h6 14. Rc1 Rac8 15. e3 Nc6 16. d4 Bd6 17. a3 Ne7 18. Qb3 {½-½ (61) Kurajica,B (2566)-Rade,M (2370) Pula 2001}) 12... Rac8 {[%emt 0:02:04]} 13. a4 {[%emt 0:02:49]} Rfd8 $36 {[%emt 0:06:53][%mdl 2048] Black is more active.} 14. a5 {[%emt 0:15:13]} Bd6 {[%emt 0:11:54]} 15. a6 {[%emt 0:02:05]} Rb8 {[%emt 0:04:58]} 16. axb7 {[%emt 0:11:12]} Rxb7 {[%emt 0:00:22]} 17. Qa2 {[%emt 0:07:44]} Rdb8 {[%emt 0:01:28]} 18. Bc3 {[%emt 0:02:45]} Nb4 {[%emt 0:13:34] Black is more active. White is now going downhill.} 19. Qa5 {[%emt 0:04:19]} (19. Bxb4 $142 Rxb4 20. Nc3) 19... Nxd3 $17 {[%emt 0:07:09]} 20. Bxf6 {[%emt 0:04:32]} (20. Nd2 $17 {keeps fighting.}) 20... gxf6 $19 {[%emt 0:00:06][%cal Bg7f6,Bf6f5][%mdl 32]} 21. Qc3 {[%emt 0:00:07]} Ne5 {[%emt 0:04:07]} (21... Nxb2 22. Qxf6 Bf8 23. Nd2 $17) 22. e4 {[%emt 0:00:28]} (22. Ra2 $142) 22... Rb3 {[%emt 0:04:56]} ({Don't blunder} 22... Rxb2 $2 23. exd5 exd5 24. Nd2 $19) 23. Qd4 {[%emt 0:00:47]} (23. Qc1 $142) 23... R3b4 {[%emt 0:04:30]} ({And not} 23... Rxb2 24. exd5 R8b4 25. dxe6 fxe6 26. Qd1 $17) 24. Qd1 {[%emt 0:03:56]} dxe4 {[%emt 0:01:31]} ({Not} 24... Rxb2 $2 25. exd5 R8b3 26. Qd4 $17) 25. Nc3 {[%emt 0:01:29]} f5 {[%emt 0:00:55]} 26. Qh5 {[%emt 0:00:40]} Qe7 {[%emt 0:04:47]} 27. Rfd1 {[%emt 0:01:13]} Ng6 {[%emt 0:04:32]} 28. h4 {[%emt 0:06:01]} (28. Rdc1 $142) 28... Be5 {[%emt 0:03:28] Black is clearly winning.} 29. Qh6 {[%emt 0:00:36]} Rxb2 {[%emt 0:00:49]} 30. Na4 {[%emt 0:00:15]} R2b4 {[%emt 0:02:16]} 31. Ra2 {[%emt 0:05:52]} Rb1 {[%emt 0:03:13]} 32. Rad2 {[%emt 0:00:25]} Rxd1+ {[%emt 0:00:18]} 33. Rxd1 {[%emt 0:00:07]} Qb4 {[%emt 0:00:43] Weighted Error Value: White=0.45/Black=0.11 (very precise)} 0-1